Cogmind - Beta 13 @@@ ROGUE MODE // 2024.04.26 @ 13:16:45 Player: Barbarossa Result: Destroyed by G-34 Mercenary with Small Laser Performance ------------- Evolutions (0) 0 Regions Visited (1) 200 Robots Destroyed (14) 70 Value Destroyed (305) 305 Prototype IDs (0) 0 Alien Tech Used (0) 0 Bonus (0) 0 TOTAL SCORE: 575 Bonus ------- None Cogmind --------- Core Integrity 0/250 Matter 211/300 Energy 159/160 System Corruption 0% Temperature Cool (6) Movement Rolling (115) Ox1 Location -10/Materials Parts ------- > --- POWER (1) -------- Light Nuclear Core > --- PROPULSION (2) --- Compact Wheel Compact Wheel > --- UTILITY (2) ------ High-capacity Storage Unit Utility Shielding > --- WEAPON (2) ------- Light Assault Rifle Mining Claw > --- INVENTORY (20) --- Ion Engine Light Treads Light Treads Medium Matter Pod (0) Large Matter Pod (0) Large Matter Pod (0) Large Matter Pod (0) Peak State ------------ > --- POWER ------------ Light Nuclear Core > --- PROPULSION ------- Compact Wheel Compact Wheel > --- UTILITY ---------- High-capacity Storage Unit Utility Shielding > --- WEAPON ----------- Light Assault Rifle Welding Torch > --- INVENTORY -------- Ion Engine Light Treads Light Treads Medium Matter Pod Large Matter Pod Large Matter Pod Large Matter Pod [Rating: 9] Favorites ----------- Power Ion Engine Engine Ion Engine Power Core Light Nuclear Core Propulsion Compact Wheel Leg Aluminum Leg Wheel Compact Wheel Utility Utility Shielding Storage High-capacity Storage Unit Protection Utility Shielding Weapon Light Assault Rifle Energy Gun EM Pulse Gun Ballistic Gun Light Assault Rifle Special Weapon Welding Torch Slashing Weapon Mining Claw Build | -11 -10 ------- Run | Yrd Mat Slots Evolved . | . . Power . | . . Propulsion . | . . Utility . | . . Weapon . | . . Parts Attached 14 | . 14 Power 1 | . 1 Engine . | . . Core 1 | . 1 Reactor . | . . Propulsion 4 | . 4 Treads . | . . Leg . | . . Wheel 4 | . 4 Hover . | . . Flight . | . . Utility 3 | . 3 Device . | . . Storage 2 | . 2 Processor . | . . Hackware . | . . Protection 1 | . 1 Artifact . | . . Weapon 6 | . 6 Energy Gun 1 | . 1 Energy Cannon . | . . Ballistic Gun 3 | . 3 Ballistic Cannon . | . . Launcher . | . . Special Weapon 1 | . 1 Impact Weapon . | . . Slashing Weapon 1 | . 1 Piercing Weapon . | . . Special Melee Weapon . | . . Unidentified Prototypes . | . . Parts Lost 7 | . 7 Power 1 | . 1 Propulsion 2 | . 2 Utility . | . . Weapon 4 | . 4 Highest Loss Streak 6 | . 6 To Critical Strikes . | . . Average Slot Usage (%) 89 | . 89 Engine 7 | . 7 Core 6 | . 6 Leg 3 | . 3 Wheel 24 | . 24 Storage 14 | . 14 Protection 12 | . 12 Energy Gun 2 | . 2 Ballistic Gun 14 | . 14 Slashing Weapon 1 | . 1 Naked Turns . | . . Heaviest Build 49 | 13 49 Greatest Support 32 | 20 32 Greatest Overweight (x) 1 | . 1 Average Overweight (x) . | . . Largest Inventory Capacity 20 | . 20 Average Capacity 17 | . 17 Most Carried 13 | . 13 Average Carried 7 | . 7 Final Capacity 20 | 8 20 Final Carried 7 | 6 7 Class Distribution -------------------- 51% | Mutant 48% | Scavenger-Mutant Dominant Class ---------------- Mutant | -10/Materials Resources | -11 -10 ----------- Run | Yrd Mat Matter Collected 281 | 200 81 Remotely . | . . Salvage Created 428 | . 428 Parts 32 | . 32 Haulers Intercepted . | . . Recyclers Shooed 2 | . 2 Parts Field Recycled . | . . Retrieved Matter . | . . Parts Self-Destructed . | . . Prevented . | . . Kills | -11 -10 ------- Run | Yrd Mat Combat Hostiles Destroyed 9 | . 9 Guns 8 | . 8 AOE 1 | . 1 Classes Destroyed 5 | . 5 Builder 2 | . 2 Recycler 2 | . 2 Watcher 1 | . 1 Swarmer 3 | . 3 Grunt 6 | . 6 Best Kill Streak 6 | . 6 Combat Bots Only 3 | . 3 Max Kills in Single Turn 4 | . 4 Gunslinging . | . . Exploded 1 | . 1 Melee . | . . Uniques/NPCs Destroyed . | . . Combat | -11 -10 -------- Run | Yrd Mat Hostile Shots Fired 77 | . 77 Missed 20 | . 20 Damage Taken 870 | . 870 Core 250 | . 250 Absorbed by Shields . | . . Redirected to Shielding 25 | . 25 Core Remaining (%) 100 | 100 . Volleys Fired 58 | . 58 Largest 2 | . 2 Hottest 60 | . 60 Shots Fired 71 | . 71 Gun 67 | . 67 Cannon . | . . Launcher . | . . Special 4 | . 4 Kinetic 65 | . 65 Thermal 6 | . 6 Explosive . | . . Electromagnetic . | . . Robot Hit Streak 9 | . 9 Robot Miss Streak 6 | . 6 Penetration Max . | . . Secondary Targets . | . . Shots Hit Robots 43 | . 43 Core Hits 26 | . 26 Critical Kills . | . . Critical Parts Destroyed 1 | . 1 Critical Strikes 1 | . 1 Destroy 1 | . 1 Melee Attacks 1 | . 1 Impact . | . . Slashing 1 | . 1 Piercing . | . . Sneak Attacks . | . . Combat Hostiles . | . . Follow-up Attacks . | . . Damage Inflicted 689 | . 689 Guns 362 | . 362 Cannons . | . . Explosions 322 | . 322 Melee . | . . Ramming 5 | . 5 Kinetic 339 | . 339 Thermal 23 | . 23 Explosive 322 | . 322 Electromagnetic . | . . Impact . | . . Slashing . | . . Piercing . | . . Highest Corruption . | . . Average Corruption . | . . Corruption Purged . | . . Corruption Blocked . | . . Overload Shots . | . . Overflow Damage 62 | . 62 Projectiles . | . . Explosions 62 | . 62 Melee . | . . Knockbacks . | . . Impact . | . . Kinetic . | . . Secondary . | . . Self-Inflicted Damage 216 | . 216 Shots 2 | . 2 Rammed 1 | . 1 Targets Rammed 1 | . 1 Kicked . | . . Crushed . | . . Highest Temperature 39 | . 39 Average Temperature 12 | . 12 Received Heat Transfer 348 | . 348 Siege Activations . | . . Robots Corrupted . | . . Combat Hostiles . | . . Parts Fried . | . . Impact Corruptions . | . . Robots Melted . | . . Combat Hostiles . | . . Parts Melted . | . . Heat Transferred 50 | . 50 Parts Sabotaged . | . . Parts Stolen . | . . Parts Stripped . | . . Power Chain Reactions . | . . Alert | -11 -10 ------- Run | Yrd Mat Peak Influence 150 | . 150 Initial . | . . Average 26 | . 26 Maximum Alert Level . | . . Low Security (%) 100 | . 100 Level 1 . | . . Level 2 . | . . Level 3 . | . . Level 4 . | . . Level 5 . | . . High Security . | . . Max Security . | . . Squads Dispatched 2 | . 2 Investigation 2 | . 2 Extermination . | . . Reinforcement . | . . Assault . | . . Garrison . | . . Intercept . | . . Searches Triggered . | . . Construction Impeded . | . . Haulers Reinforced . | . . Active Scanning Responses . | . . Cargo Convoy Interrupts . | . . Stealth | -11 -10 --------- Run | Yrd Mat Distress Signals . | . . Communications Jammed . | . . Distress Signals . | . . Times Spotted 15 | . 15 Peak Tracking Total 4 | . 4 Tactical Retreats . | . . Traps | -11 -10 ------- Run | Yrd Mat Traps Triggered 2 | . 2 Indirectly . | . . Trap Hack Attempts . | . . Triggered . | . . Disarmed . | . . Reprogrammed . | . . Reused . | . . Traps Extracted . | . . Installed . | . . Triggered . | . . Machines | -11 -10 ---------- Run | Yrd Mat Machines Disabled 2 | . 2 Max in Single Turn 2 | . 2 Machines Repaired . | . . Machines Dismantled . | . . Machines Sabotaged . | . . Overloaded Fab Kills . | . . Hacking | -11 -10 --------- Run | Yrd Mat Machines Accessed 4 | . 4 Terminals 4 | . 4 Fabricators . | . . Repair Stations . | . . Recycling Units . | . . Scanalyzers . | . . Garrison Access . | . . Total Hacks 13 | . 13 Successful 8 | . 8 Failed 5 | . 5 Catastrophic 1 | . 1 Database Lockouts . | . . Manual 10 | . 10 Terminals 13 | . 13 Fabricators . | . . Repair Stations . | . . Recycling Units . | . . Scanalyzers . | . . Garrison Access . | . . Terminal Hacks 4 | . 4 Terminal Index 2 | . 2 Unreport Threat 1 | . 1 Registered Components 1 | . 1 Fabricator Hacks . | . . Repair Station Hacks . | . . Recycling Unit Hacks . | . . Scanalyzer . | . . Garrison Access Hacks . | . . Unauthorized Hacks 4 | . 4 Terminals 4 | . 4 Botnet 4 | . 4 Fabricators . | . . Repair Stations . | . . Recycling Units . | . . Scanalyzers . | . . Garrison Access . | . . Data Cores Recovered . | . . Used . | . . Hacking Detections 3 | . 3 Full Trace Events . | . . Feedback Events . | . . Feedback Blocked . | . . Robot Schematics Acquired . | . . Robots Built . | . . Authchips . | . . Time . | . . Total Robot Build Rating . | . . Part Schematics Acquired . | . . Parts Built . | . . Authchips . | . . Time . | . . Total Part Build Rating . | . . Parts Repaired . | . . Time . | . . Parts Recycled . | . . Recycled Matter . | . . Retrieved Matter . | . . Retrieved Components . | . . Parts Scanalyzed . | . . Part Schematics Acquired . | . . Parts Damaged . | . . Bothacking | -11 -10 ------------ Run | Yrd Mat Used RIF Installer . | . . Robots Hacked . | . . Non-combat . | . . Combat . | . . Robot Hacks Applied . | . . Relay Couplers Released . | . . Fabnet Peak Effective % . | . . Robots Rewired . | . . Allies Hacked . | . . Hacks Repelled . | . . Allies | -11 -10 -------- Run | Yrd Mat Total Allies . | . . Largest Group . | . . Highest-Rated Group . | . . Highest-Rated Ally . | . . Total Orders . | . . Ally Attacks . | . . Total Damage . | . . Kills . | . . Allies Corrupted . | . . Allies Melted . | . . Intel | -11 -10 ------- Run | Yrd Mat Robot Analysis Total . | . . Derelict Logs Recovered . | . . Drone Launches . | . . Drone Recoveries . | . . Exploration | -11 -10 ------------- Run | Yrd Mat Turns Passed 625 | . 625 Spaces Moved 369 | 1 368 Core . | . . Treads . | . . Legs 56 | 1 55 Wheels 313 | . 313 Hover . | . . Flight . | . . Fastest Speed 100 | 120 100 Average Speed 112 | 120 112 Slowest Speed 120 | 120 120 Overloaded Moves . | . . Propulsion Burnouts . | . . Robots Hopped . | . . Cave-ins Triggered . | . . Exploration Rate (%) 23 | 2 45 Regions Visited 1 Branch Regions . Pre-discovered Areas . | . . Known Exits Taken . | . . Unknown Exits Taken 1 | 1 . Scrap Searched . | . . Spaces Dug . | . . Terrain Destroyed 18 | . 18 Melee . | . . Projectile . | . . AOE 18 | . 18 Terrain Rammed . | . . Walls Destroyed . | . . Machines Disabled . | . . Actions | -11 -10 --------- Run | Yrd Mat Total 519 | . 519 Wait 58 | . 58 Move 368 | . 368 Hop . | . . Pick Up 13 | . 13 Fast Attach 1 | . 1 Attach 9 | . 9 Detach . | . . Swap 4 | . 4 Drop 6 | . 6 Fire 58 | . 58 Melee 1 | . 1 Ram 1 | . 1 Kick . | . . Crush . | . . Escape Stasis . | . . Rewire . | . . Trap . | . . Miscellaneous . | . . Route ------- -11/Scrapyard -10/Materials (discovered 2 exits: [*Mat] / [*Min]) History --------- Turn | Location | Event 1 | -11/Scrapyard | Discovered new exit (range 0) 1 | -11/Scrapyard | Entered Materials 227 | -10/Materials | Discovered new exit (range 15) 234 | -10/Materials | Discovered new exit (range 14) 311 | -10/Materials | Core integrity fell below 50% 318 | -10/Materials | Build established: Mutant 358 | -10/Materials | Lost 6 parts (1p2n3w) 372 | -10/Materials | Core integrity fell below 20% 626 | -10/Materials | Destroyed by G-34 Mercenary with Small Laser Last Messages --------------- >>Inventory(Components) Retrieving component inventory records... Found 1 registered component stockpile: SO5UX3HN2B: Com. Wheel Downloaded coordinate data. 00393_ K-01 Serf collects debris. 00399_ U-05 Engineer lays Concrete. 00405_ Acquired 20 matter. 00405_ U-05 Engineer lays Concrete. 00424_ K-01 Serf collects debris. 00424_ U-05 Engineer lays Concrete. 00425_ K-01 Serf collects debris. 00425_ U-05 Engineer builds a Wall. 00481_ Acquired Welding Torch. 00497_ Dropped Welding Torch. 00542_ Triggered Alarm Trap. 00542_ An alarm sounds. 00542_ ALERT: Alarm triggered, dispatching investigation squad. 00555_ Acquired Mining Claw. Map ----- +----------------------------------------------------+ | ??????????????????????????????????? | | ??????????????????? ??????????????? | | ?????????????????## #?????????????? | | ?????????????